[Event "Titled Tuesday Blitz January 10 Early 2023"]
[White "Jones, Gawain C B"]
[Black "Zemlyanskii, Ivan"]
[WhiteFideId "409561"]
[BlackFideId "24249971"]
[WhiteElo "2618"]
[BlackElo "2300"]
[Result "1/2-1/2"]
[Round "09"]
[TimeControl "180+2"]
[Date "2023.01.10"]
[WhiteClock "0:00:04"]
[BlackClock "0:00:07"]

1. c4 {[%clk 0:02:59]}  e6 {[%clk 0:02:59]} 2. g3 {[%clk 0:02:55]}  d5 {[%clk 0:03:00]} 3. Bg2 {[%clk 0:02:56]}  Nf6 {[%clk 0:03:00]} 4. Nf3 {[%clk 0:02:56]}  d4 {[%clk 0:03:01]} 5. b4 {[%clk 0:02:51]}  Bxb4 {[%clk 0:03:00]} 6. Qa4+ {[%clk 0:02:50]}  Nc6 {[%clk 0:03:00]} 7. Ne5 {[%clk 0:02:51]}  Rb8 {[%clk 0:03:00]} 8. Nxc6 {[%clk 0:02:40]}  bxc6 {[%clk 0:03:01]} 9. Ba3 {[%clk 0:02:28]}  a5 {[%clk 0:02:45]} 10. Bxb4 {[%clk 0:02:22]}  axb4 {[%clk 0:02:46]} 11. Qxc6+ {[%clk 0:02:22]}  Qd7 {[%clk 0:02:39]} 12. d3 {[%clk 0:02:12]}  Bb7 {[%clk 0:02:27]} 13. Qxd7+ {[%clk 0:02:11]}  Nxd7 {[%clk 0:02:28]} 14. Bxb7 {[%clk 0:02:08]}  Rxb7 {[%clk 0:02:29]} 15. Nd2 {[%clk 0:02:08]}  Ke7 {[%clk 0:02:27]} 16. Nb3 {[%clk 0:02:04]}  c5 {[%clk 0:02:28]} 17. Kd2 {[%clk 0:02:01]}  Ra8 {[%clk 0:02:26]} 18. Kc2 {[%clk 0:02:01]}  Rc7 {[%clk 0:02:24]} 19. e3 {[%clk 0:01:53]}  dxe3 {[%clk 0:02:13]} 20. fxe3 {[%clk 0:01:53]}  Nb6 {[%clk 0:02:14]} 21. Rhc1 {[%clk 0:01:41]}  e5 {[%clk 0:02:13]} 22. Kd2 {[%clk 0:01:37]}  Ra3 {[%clk 0:01:58]} 23. Rc2 {[%clk 0:01:33]}  Na4 {[%clk 0:01:57]} 24. Rb1 {[%clk 0:00:47]}  Nc3 {[%clk 0:01:29]} 25. Rbb2 {[%clk 0:00:47]}  Na4 {[%clk 0:01:00]} 26. Rb1 {[%clk 0:00:47]}  Nc3 {[%clk 0:01:01]} 27. Rbb2 {[%clk 0:00:45]}  e4 {[%clk 0:00:48]} 28. d4 {[%clk 0:00:38]}  cxd4 {[%clk 0:00:48]} 29. Nxd4 {[%clk 0:00:37]}  Rxc4 {[%clk 0:00:48]} 30. Rxb4 {[%clk 0:00:34]}  Rxb4 {[%clk 0:00:28]} 31. Nc6+ {[%clk 0:00:34]}  Kd6 {[%clk 0:00:24]} 32. Nxb4 {[%clk 0:00:35]}  Nd5 {[%clk 0:00:24]} 33. Nxd5 {[%clk 0:00:30]}  Kxd5 {[%clk 0:00:25]} 34. g4 {[%clk 0:00:28]}  Ke5 {[%clk 0:00:22]} 35. Ke2 {[%clk 0:00:25]}  g6 {[%clk 0:00:18]} 36. Kf2 {[%clk 0:00:16]}  f5 {[%clk 0:00:17]} 37. gxf5 {[%clk 0:00:17]}  gxf5 {[%clk 0:00:18]} 38. Rc5+ {[%clk 0:00:15]}  Kf6 {[%clk 0:00:17]} 39. Rc2 {[%clk 0:00:15]}  Kg5 {[%clk 0:00:18]} 40. Re2 {[%clk 0:00:14]}  Kg4 {[%clk 0:00:17]} 41. Kg2 {[%clk 0:00:14]}  f4 {[%clk 0:00:16]} 42. exf4 {[%clk 0:00:14]}  Kxf4 {[%clk 0:00:17]} 43. Rf2+ {[%clk 0:00:10]}  Ke3 {[%clk 0:00:16]} 44. Kf1 {[%clk 0:00:06]}  Kd3 {[%clk 0:00:13]} 45. h4 {[%clk 0:00:03]}  Rc3 {[%clk 0:00:11]} 46. Rf7 {[%clk 0:00:02]}  Rc1+ {[%clk 0:00:11]} 47. Kg2 {[%clk 0:00:02]}  e3 {[%clk 0:00:12]} 48. Rd7+ {[%clk 0:00:02]}  Ke4 {[%clk 0:00:09]} 49. Re7+ {[%clk 0:00:02]}  Kf4 {[%clk 0:00:08]} 50. Rf7+ {[%clk 0:00:03]}  Kg4 {[%clk 0:00:08]} 51. Rg7+ {[%clk 0:00:03]}  Kf5 {[%clk 0:00:07]} 52. Re7 {[%clk 0:00:02]}  Kf4 {[%clk 0:00:07]} 53. Rf7+ {[%clk 0:00:02]}  Ke4 {[%clk 0:00:07]} 54. Re7+ {[%clk 0:00:02]}  Kd3 {[%clk 0:00:08]} 55. Rd7+ {[%clk 0:00:02]}  Ke2 {[%clk 0:00:09]} 56. Rxh7 {[%clk 0:00:01]}  Rc4 {[%clk 0:00:08]} 57. Kg3 {[%clk 0:00:01]}  Rc1 {[%clk 0:00:06]} 58. Re7 {[%clk 0:00:01]}  Rg1+ {[%clk 0:00:06]} 59. Kf4 {[%clk 0:00:02]}  Rf1+ {[%clk 0:00:05]} 60. Kg3 {[%clk 0:00:02]}  Rg1+ {[%clk 0:00:05]} 61. Kf4 {[%clk 0:00:03]}  Rf1+ {[%clk 0:00:04]} 62. Kg5 {[%clk 0:00:03]}  Kf2 {[%clk 0:00:02]} 63. Rf7+ {[%clk 0:00:03]}  Kg2 {[%clk 0:00:02]} 64. Re7 {[%clk 0:00:04]}  Kf3 {[%clk 0:00:02]} 65. Rf7+ {[%clk 0:00:04]}  Kg2 {[%clk 0:00:03]} 66. Re7 {[%clk 0:00:04]}  Kf3 {[%clk 0:00:03]} 67. h5 {[%clk 0:00:05]}  e2 {[%clk 0:00:03]} 68. h6 {[%clk 0:00:06]}  Rg1+ {[%clk 0:00:04]} 69. Kf6 {[%clk 0:00:05]}  e1=Q {[%clk 0:00:03]} 70. Rxe1 {[%clk 0:00:05]}  Rxe1 {[%clk 0:00:04]} 71. h7 {[%clk 0:00:06]}  Rh1 {[%clk 0:00:05]} 72. Kg7 {[%clk 0:00:06]}  Ke4 {[%clk 0:00:05]} 73. a4 {[%clk 0:00:05]}  Kd5 {[%clk 0:00:06]} 74. a5 {[%clk 0:00:05]}  Kc6 {[%clk 0:00:06]} 75. h8=Q {[%clk 0:00:05]}  Rxh8 {[%clk 0:00:05]} 76. Kxh8 {[%clk 0:00:06]}  Kb5 {[%clk 0:00:06]} 77. a6 {[%clk 0:00:04]}  Kxa6 {[%clk 0:00:07]} 1/2-1/2


[Site "https://www.chess.com"]

[Event "Titled Tuesday Blitz January 10 Early 2023"]
[White "Moroni, Luca Jr"]
[Black "Avila Pavas, Santiago"]
[WhiteFideId "865834"]
[BlackFideId "4437128"]
[WhiteElo "2535"]
[BlackElo "2522"]
[Result "1-0"]
[Round "09"]
[TimeControl "180+2"]
[Date "2023.01.10"]
[WhiteClock "0:00:02"]
[BlackClock "0:00:01"]

1. d4 {[%clk 0:03:00]}  Nf6 {[%clk 0:03:00]} 2. Nf3 {[%clk 0:02:59]}  e6 {[%clk 0:03:01]} 3. Bf4 {[%clk 0:02:59]}  d5 {[%clk 0:03:00]} 4. e3 {[%clk 0:02:59]}  Bd6 {[%clk 0:03:01]} 5. Nbd2 {[%clk 0:02:59]}  c5 {[%clk 0:03:01]} 6. dxc5 {[%clk 0:02:58]}  Bxc5 {[%clk 0:03:00]} 7. Bd3 {[%clk 0:02:58]}  O-O {[%clk 0:03:00]} 8. O-O {[%clk 0:02:58]}  Nc6 {[%clk 0:03:01]} 9. c3 {[%clk 0:02:57]}  Re8 {[%clk 0:02:57]} 10. e4 {[%clk 0:02:56]}  h6 {[%clk 0:02:36]} 11. h3 {[%clk 0:02:49]}  e5 {[%clk 0:02:34]} 12. Bh2 {[%clk 0:02:47]}  Bf8 {[%clk 0:02:31]} 13. Re1 {[%clk 0:02:37]}  d4 {[%clk 0:01:47]} 14. cxd4 {[%clk 0:02:34]}  exd4 {[%clk 0:01:47]} 15. Rc1 {[%clk 0:02:25]}  Be6 {[%clk 0:01:44]} 16. a3 {[%clk 0:02:16]}  Nd7 {[%clk 0:01:36]} 17. Bb1 {[%clk 0:02:11]}  g6 {[%clk 0:01:18]} 18. Rxc6 {[%clk 0:02:02]}  bxc6 {[%clk 0:01:18]} 19. Nxd4 {[%clk 0:02:03]}  Bg7 {[%clk 0:00:55]} 20. Nxe6 {[%clk 0:01:56]}  Rxe6 {[%clk 0:00:56]} 21. Qc2 {[%clk 0:01:49]}  Be5 {[%clk 0:00:47]} 22. f4 {[%clk 0:01:47]}  Bd4+ {[%clk 0:00:47]} 23. Kh1 {[%clk 0:01:47]}  Rb8 {[%clk 0:00:44]} 24. b4 {[%clk 0:01:40]}  Re8 {[%clk 0:00:28]} 25. e5 {[%clk 0:01:33]}  c5 {[%clk 0:00:27]} 26. Nf3 {[%clk 0:01:29]}  Qb6 {[%clk 0:00:26]} 27. Qd2 {[%clk 0:01:23]}  Rbd8 {[%clk 0:00:25]} 28. Nxd4 {[%clk 0:00:55]}  cxd4 {[%clk 0:00:26]} 29. f5 {[%clk 0:00:56]}  Nf8 {[%clk 0:00:19]} 30. e6 {[%clk 0:00:47]}  fxe6 {[%clk 0:00:10]} 31. fxg6 {[%clk 0:00:45]}  Qb7 {[%clk 0:00:03]} 32. Qxh6 {[%clk 0:00:22]}  Qg7 {[%clk 0:00:03]} 33. Qh5 {[%clk 0:00:23]}  d3 {[%clk 0:00:01]} 34. Be5 {[%clk 0:00:18]}  Qxg6 {[%clk 0:00:01]} 35. Qh8+ {[%clk 0:00:15]}  Kf7 {[%clk 0:00:02]} 36. Qh4 {[%clk 0:00:08]}  Kg8 {[%clk 0:00:02]} 37. Rf1 {[%clk 0:00:08]}  Nh7 {[%clk 0:00:01]} 38. Kh2 {[%clk 0:00:04]}  Rf8 {[%clk 0:00:01]} 39. Rd1 {[%clk 0:00:04]}  Qg5 {[%clk 0:00:02]} 40. Qe1 {[%clk 0:00:03]}  Rf5 {[%clk 0:00:01]} 41. Bg3 {[%clk 0:00:02]} 1-0


[Site "https://www.chess.com"]

[Event "Titled Tuesday Blitz January 10 Early 2023"]
[White "Alexakis, Dimitris"]
[Black "Fernandez Guillen, Ernesto J."]
[WhiteFideId "4277023"]
[BlackFideId "3512428"]
[WhiteElo "2436"]
[BlackElo "2477"]
[Result "0-1"]
[Round "09"]
[TimeControl "180+2"]
[Date "2023.01.10"]
[WhiteClock "0:00:25"]
[BlackClock "0:00:41"]

1. Nf3 {[%clk 0:02:50]}  Nf6 {[%clk 0:02:59]} 2. g3 {[%clk 0:02:50]}  g6 {[%clk 0:03:00]} 3. Bg2 {[%clk 0:02:50]}  Bg7 {[%clk 0:03:00]} 4. O-O {[%clk 0:02:51]}  O-O {[%clk 0:03:01]} 5. c4 {[%clk 0:02:52]}  d5 {[%clk 0:03:01]} 6. cxd5 {[%clk 0:02:51]}  Nxd5 {[%clk 0:03:02]} 7. Nc3 {[%clk 0:02:52]}  Nb6 {[%clk 0:03:02]} 8. d4 {[%clk 0:02:51]}  c6 {[%clk 0:03:03]} 9. h3 {[%clk 0:02:51]}  N8d7 {[%clk 0:03:03]} 10. e4 {[%clk 0:02:50]}  e5 {[%clk 0:03:04]} 11. Bg5 {[%clk 0:02:42]}  Qe8 {[%clk 0:02:35]} 12. d5 {[%clk 0:02:34]}  cxd5 {[%clk 0:02:29]} 13. exd5 {[%clk 0:02:14]}  h6 {[%clk 0:02:27]} 14. Be3 {[%clk 0:02:06]}  Nc4 {[%clk 0:02:21]} 15. Qb3 {[%clk 0:02:01]}  Nxe3 {[%clk 0:02:20]} 16. fxe3 {[%clk 0:02:02]}  e4 {[%clk 0:02:06]} 17. Nd2 {[%clk 0:01:57]}  f5 {[%clk 0:02:00]} 18. d6+ {[%clk 0:01:44]}  Kh7 {[%clk 0:01:59]} 19. Nd5 {[%clk 0:01:43]}  Qe5 {[%clk 0:01:49]} 20. Nc7 {[%clk 0:01:38]}  Nc5 {[%clk 0:01:10]} 21. Qa3 {[%clk 0:01:28]}  b6 {[%clk 0:00:57]} 22. Nxa8 {[%clk 0:01:23]}  Qxg3 {[%clk 0:00:57]} 23. Nc4 {[%clk 0:00:58]}  Be6 {[%clk 0:00:52]} 24. Rac1 {[%clk 0:00:45]}  Nd3 {[%clk 0:00:50]} 25. Nc7 {[%clk 0:00:43]}  Bxc4 {[%clk 0:00:48]} 26. Rxc4 {[%clk 0:00:43]}  Be5 {[%clk 0:00:44]} 27. Qxd3 {[%clk 0:00:25]}  Qh2+ {[%clk 0:00:41]} 28. Kf2 {[%clk 0:00:25]}  Bg3+ {[%clk 0:00:41]} 0-1


[Site "https://www.chess.com"]

[Event "Titled Tuesday Blitz January 10 Early 2023"]
[White "Koellner, Ruben Gideon"]
[Black "Kosakowski, Jakub"]
[WhiteFideId "12993093"]
[BlackFideId "1185080"]
[WhiteElo "2426"]
[BlackElo "2485"]
[Result "0-1"]
[Round "09"]
[TimeControl "180+2"]
[Date "2023.01.10"]
[WhiteClock "0:00:02"]
[BlackClock "0:00:28"]

1. d4 {[%clk 0:03:00]}  Nf6 {[%clk 0:02:54]} 2. Nf3 {[%clk 0:03:00]}  e6 {[%clk 0:02:54]} 3. Nbd2 {[%clk 0:03:00]}  c5 {[%clk 0:02:53]} 4. e3 {[%clk 0:03:00]}  Nc6 {[%clk 0:02:52]} 5. Bd3 {[%clk 0:03:00]}  b6 {[%clk 0:02:51]} 6. O-O {[%clk 0:03:00]}  Bb7 {[%clk 0:02:51]} 7. c3 {[%clk 0:03:00]}  Be7 {[%clk 0:02:50]} 8. e4 {[%clk 0:02:58]}  cxd4 {[%clk 0:02:50]} 9. cxd4 {[%clk 0:02:57]}  d6 {[%clk 0:02:50]} 10. a3 {[%clk 0:02:57]}  O-O {[%clk 0:02:50]} 11. b4 {[%clk 0:02:57]}  Rc8 {[%clk 0:02:45]} 12. Bb2 {[%clk 0:02:57]}  h6 {[%clk 0:02:42]} 13. Rc1 {[%clk 0:02:57]}  Nd7 {[%clk 0:02:33]} 14. Qe2 {[%clk 0:02:56]}  Re8 {[%clk 0:02:18]} 15. h3 {[%clk 0:02:56]}  Bf8 {[%clk 0:02:16]} 16. Rfd1 {[%clk 0:02:55]}  e5 {[%clk 0:02:12]} 17. d5 {[%clk 0:02:52]}  Ne7 {[%clk 0:02:12]} 18. Ba6 {[%clk 0:02:48]}  Bxa6 {[%clk 0:02:05]} 19. Qxa6 {[%clk 0:02:49]}  Rc7 {[%clk 0:02:06]} 20. Rxc7 {[%clk 0:02:48]}  Qxc7 {[%clk 0:02:06]} 21. Rc1 {[%clk 0:02:48]}  Qb8 {[%clk 0:02:06]} 22. Nb1 {[%clk 0:02:35]}  f5 {[%clk 0:01:56]} 23. Nfd2 {[%clk 0:02:28]}  Nf6 {[%clk 0:01:54]} 24. f3 {[%clk 0:02:26]}  Nh5 {[%clk 0:01:41]} 25. Nc3 {[%clk 0:02:22]}  Nf4 {[%clk 0:01:41]} 26. Kh2 {[%clk 0:02:16]}  fxe4 {[%clk 0:01:34]} 27. fxe4 {[%clk 0:02:17]}  Neg6 {[%clk 0:01:29]} 28. g3 {[%clk 0:02:06]}  Nh5 {[%clk 0:01:27]} 29. Qe2 {[%clk 0:01:54]}  Nf6 {[%clk 0:01:26]} 30. Qa6 {[%clk 0:01:45]}  Nh5 {[%clk 0:01:23]} 31. Nf3 {[%clk 0:01:22]}  Be7 {[%clk 0:01:17]} 32. Nb5 {[%clk 0:01:15]}  Rf8 {[%clk 0:01:16]} 33. Nxa7 {[%clk 0:01:11]}  Qe8 {[%clk 0:01:08]} 34. Rc8 {[%clk 0:01:03]}  Qf7 {[%clk 0:01:08]} 35. Rxf8+ {[%clk 0:01:03]}  Bxf8 {[%clk 0:01:09]} 36. Kg2 {[%clk 0:00:44]}  Nxg3 {[%clk 0:01:09]} 37. Kxg3 {[%clk 0:00:39]}  Qf4+ {[%clk 0:01:09]} 38. Kf2 {[%clk 0:00:35]}  Qxe4 {[%clk 0:01:07]} 39. Qe2 {[%clk 0:00:32]}  Qxd5 {[%clk 0:01:07]} 40. Nd2 {[%clk 0:00:25]}  Qf7+ {[%clk 0:01:00]} 41. Qf3 {[%clk 0:00:24]}  Qxa7 {[%clk 0:00:59]} 42. Ke2 {[%clk 0:00:16]}  d5 {[%clk 0:00:56]} 43. Qxd5+ {[%clk 0:00:15]}  Kh8 {[%clk 0:00:54]} 44. Bxe5 {[%clk 0:00:12]}  Qxa3 {[%clk 0:00:53]} 45. Qf7 {[%clk 0:00:10]}  Qxb4 {[%clk 0:00:49]} 46. Qxg6 {[%clk 0:00:09]}  Qb5+ {[%clk 0:00:50]} 47. Kd1 {[%clk 0:00:02]}  Qxe5 {[%clk 0:00:50]} 48. Qxb6 {[%clk 0:00:03]}  Qc3 {[%clk 0:00:49]} 49. Qd8 {[%clk 0:00:03]}  Qb4 {[%clk 0:00:45]} 50. Ke2 {[%clk 0:00:02]}  Qb5+ {[%clk 0:00:40]} 51. Kf3 {[%clk 0:00:02]}  Qf5+ {[%clk 0:00:40]} 52. Ke2 {[%clk 0:00:02]}  Kg8 {[%clk 0:00:39]} 53. h4 {[%clk 0:00:01]}  Qe6+ {[%clk 0:00:38]} 54. Kd1 {[%clk 0:00:01]}  Kf7 {[%clk 0:00:36]} 55. Qd3 {[%clk 0:00:01]}  Be7 {[%clk 0:00:36]} 56. Qf3+ {[%clk 0:00:01]}  Kg8 {[%clk 0:00:35]} 57. h5 {[%clk 0:00:02]}  Qa2 {[%clk 0:00:29]} 58. Ke2 {[%clk 0:00:02]}  Bg5 {[%clk 0:00:28]} 59. Qd5+ {[%clk 0:00:02]}  Qxd5 {[%clk 0:00:28]} 0-1


[Site "https://www.chess.com"]

[Event "Titled Tuesday Blitz January 10 Early 2023"]
[White "Taboas Rodriguez, Daniel"]
[Black "Samadov, Read"]
[WhiteFideId "2208466"]
[BlackFideId "13417444"]
[WhiteElo "2371"]
[BlackElo "2469"]
[Result "1/2-1/2"]
[Round "09"]
[TimeControl "180+2"]
[Date "2023.01.10"]
[WhiteClock "0:01:51"]
[BlackClock "0:01:25"]

1. d4 {[%clk 0:03:00]}  Nf6 {[%clk 0:02:58]} 2. Nf3 {[%clk 0:03:00]}  d5 {[%clk 0:02:57]} 3. c4 {[%clk 0:03:00]}  e6 {[%clk 0:02:56]} 4. Bg5 {[%clk 0:03:00]}  Bb4+ {[%clk 0:02:55]} 5. Nc3 {[%clk 0:02:59]}  h6 {[%clk 0:02:54]} 6. Bxf6 {[%clk 0:02:58]}  Qxf6 {[%clk 0:02:55]} 7. e3 {[%clk 0:02:59]}  O-O {[%clk 0:02:54]} 8. Rc1 {[%clk 0:02:59]}  Nc6 {[%clk 0:02:55]} 9. a3 {[%clk 0:02:57]}  Bxc3+ {[%clk 0:02:53]} 10. Rxc3 {[%clk 0:02:58]}  dxc4 {[%clk 0:02:46]} 11. Bxc4 {[%clk 0:02:59]}  e5 {[%clk 0:02:46]} 12. O-O {[%clk 0:02:52]}  Bg4 {[%clk 0:02:41]} 13. Bd5 {[%clk 0:02:37]}  exd4 {[%clk 0:02:33]} 14. exd4 {[%clk 0:02:35]}  Rad8 {[%clk 0:02:18]} 15. Bxc6 {[%clk 0:02:34]}  bxc6 {[%clk 0:02:19]} 16. Qa4 {[%clk 0:02:06]}  Bxf3 {[%clk 0:02:02]} 17. Rxf3 {[%clk 0:02:06]}  Qxd4 {[%clk 0:02:01]} 18. Qxc6 {[%clk 0:02:02]}  Qxb2 {[%clk 0:02:00]} 19. Qxc7 {[%clk 0:02:02]}  Qb6 {[%clk 0:01:34]} 20. Qxb6 {[%clk 0:01:54]}  axb6 {[%clk 0:01:35]} 21. Rb3 {[%clk 0:01:55]}  Rd6 {[%clk 0:01:34]} 22. Rfb1 {[%clk 0:01:52]}  Rc8 {[%clk 0:01:33]} 23. g3 {[%clk 0:01:48]}  Ra8 {[%clk 0:01:27]} 24. Rxb6 {[%clk 0:01:47]}  Rxb6 {[%clk 0:01:27]} 25. Rxb6 {[%clk 0:01:48]}  Rxa3 {[%clk 0:01:26]} 26. h4 {[%clk 0:01:48]}  h5 {[%clk 0:01:25]} 27. Kg2 {[%clk 0:01:49]}  g6 {[%clk 0:01:25]} 28. Rb2 {[%clk 0:01:49]}  Kg7 {[%clk 0:01:25]} 29. Re2 {[%clk 0:01:50]}  Ra6 {[%clk 0:01:24]} 30. Re4 {[%clk 0:01:50]}  Ra3 {[%clk 0:01:24]} 31. Re2 {[%clk 0:01:50]}  Ra6 {[%clk 0:01:24]} 32. Re4 {[%clk 0:01:51]}  Ra3 {[%clk 0:01:25]} 33. Re2 {[%clk 0:01:51]} 1/2-1/2


[Site "https://www.chess.com"]

[Event "Titled Tuesday Blitz January 10 Early 2023"]
[White "Stribuk, Artiom"]
[Black "Najdin, Danil"]
[WhiteFideId "13515659"]
[BlackFideId "4172426"]
[WhiteElo "2378"]
[BlackElo "2235"]
[Result "0-1"]
[Round "09"]
[TimeControl "180+2"]
[Date "2023.01.10"]
[WhiteClock "0:00:01"]
[BlackClock "0:00:09"]

1. d4 {[%clk 0:02:52]}  Nf6 {[%clk 0:02:56]} 2. c4 {[%clk 0:02:52]}  e6 {[%clk 0:02:57]} 3. g3 {[%clk 0:02:52]}  c5 {[%clk 0:02:55]} 4. Nf3 {[%clk 0:02:49]}  cxd4 {[%clk 0:02:44]} 5. Nxd4 {[%clk 0:02:50]}  Nc6 {[%clk 0:02:44]} 6. Nc3 {[%clk 0:02:49]}  b6 {[%clk 0:02:24]} 7. Nxc6 {[%clk 0:02:28]}  dxc6 {[%clk 0:02:25]} 8. Qxd8+ {[%clk 0:02:28]}  Kxd8 {[%clk 0:02:26]} 9. Bf4 {[%clk 0:02:28]}  Bb4 {[%clk 0:02:04]} 10. O-O-O+ {[%clk 0:02:26]}  Ke7 {[%clk 0:02:03]} 11. Bg2 {[%clk 0:01:59]}  Bb7 {[%clk 0:01:56]} 12. a3 {[%clk 0:01:52]}  Bxc3 {[%clk 0:01:55]} 13. Bd6+ {[%clk 0:01:52]}  Ke8 {[%clk 0:01:54]} 14. bxc3 {[%clk 0:01:53]}  Rd8 {[%clk 0:01:49]} 15. h3 {[%clk 0:01:45]}  Rd7 {[%clk 0:01:40]} 16. c5 {[%clk 0:01:44]}  Kd8 {[%clk 0:01:32]} 17. e4 {[%clk 0:01:13]}  b5 {[%clk 0:01:05]} 18. a4 {[%clk 0:01:04]}  Re8 {[%clk 0:00:52]} 19. Kc2 {[%clk 0:00:59]}  e5 {[%clk 0:00:50]} 20. Rhe1 {[%clk 0:00:49]}  g5 {[%clk 0:00:36]} 21. h4 {[%clk 0:00:27]}  g4 {[%clk 0:00:35]} 22. Bf1 {[%clk 0:00:28]}  a6 {[%clk 0:00:33]} 23. Rd2 {[%clk 0:00:20]}  Kc8 {[%clk 0:00:33]} 24. f3 {[%clk 0:00:19]}  h5 {[%clk 0:00:32]} 25. f4 {[%clk 0:00:19]}  exf4 {[%clk 0:00:30]} 26. Bxf4 {[%clk 0:00:09]}  Rxd2+ {[%clk 0:00:28]} 27. Kxd2 {[%clk 0:00:10]}  Rxe4 {[%clk 0:00:27]} 28. axb5 {[%clk 0:00:06]}  Rxe1 {[%clk 0:00:25]} 29. Kxe1 {[%clk 0:00:04]}  cxb5 {[%clk 0:00:25]} 30. Bd3 {[%clk 0:00:04]}  Be4 {[%clk 0:00:24]} 31. Be2 {[%clk 0:00:03]}  Nd5 {[%clk 0:00:22]} 32. Be5 {[%clk 0:00:04]}  Kd7 {[%clk 0:00:22]} 33. Kd2 {[%clk 0:00:04]}  Kc6 {[%clk 0:00:22]} 34. Bd4 {[%clk 0:00:04]}  a5 {[%clk 0:00:20]} 35. c4 {[%clk 0:00:05]}  bxc4 {[%clk 0:00:16]} 36. Bxc4 {[%clk 0:00:06]}  f5 {[%clk 0:00:15]} 37. Ba2 {[%clk 0:00:03]}  f4 {[%clk 0:00:12]} 38. gxf4 {[%clk 0:00:03]}  Nxf4 {[%clk 0:00:12]} 39. Ke3 {[%clk 0:00:04]}  Bd5 {[%clk 0:00:11]} 40. Bb1 {[%clk 0:00:01]}  Ne6 {[%clk 0:00:09]} 0-1


[Site "https://www.chess.com"]

[Event "Titled Tuesday Blitz January 10 Early 2023"]
[White "Pranav, V"]
[Black "Yuan, Qingyu"]
[WhiteFideId "25060783"]
[BlackFideId "8609772"]
[WhiteElo "2597"]
[BlackElo "2373"]
[Result "1-0"]
[Round "09"]
[TimeControl "180+2"]
[Date "2023.01.10"]
[WhiteClock "0:01:33"]
[BlackClock "0:00:03"]

1. e4 {[%clk 0:03:00]}  e5 {[%clk 0:02:59]} 2. Nf3 {[%clk 0:03:01]}  Nc6 {[%clk 0:03:00]} 3. Bb5 {[%clk 0:03:01]}  Nf6 {[%clk 0:03:00]} 4. O-O {[%clk 0:03:01]}  Nxe4 {[%clk 0:03:00]} 5. d4 {[%clk 0:03:01]}  Nd6 {[%clk 0:03:01]} 6. Ba4 {[%clk 0:03:02]}  e4 {[%clk 0:02:53]} 7. Re1 {[%clk 0:03:02]}  Be7 {[%clk 0:02:52]} 8. Ne5 {[%clk 0:03:03]}  O-O {[%clk 0:02:49]} 9. Nc3 {[%clk 0:03:03]}  f5 {[%clk 0:02:48]} 10. Bb3+ {[%clk 0:03:02]}  Kh8 {[%clk 0:02:47]} 11. Bf4 {[%clk 0:03:02]}  Qe8 {[%clk 0:02:23]} 12. Nd5 {[%clk 0:02:49]}  Bd8 {[%clk 0:02:22]} 13. Re3 {[%clk 0:02:49]}  g5 {[%clk 0:02:11]} 14. Rh3 {[%clk 0:02:23]}  gxf4 {[%clk 0:02:06]} 15. Nxf4 {[%clk 0:02:24]}  Nxe5 {[%clk 0:01:41]} 16. dxe5 {[%clk 0:02:15]}  Bg5 {[%clk 0:01:42]} 17. g3 {[%clk 0:01:58]}  Bxf4 {[%clk 0:01:16]} 18. gxf4 {[%clk 0:01:59]}  Nf7 {[%clk 0:01:15]} 19. Qh5 {[%clk 0:01:59]}  Rg8+ {[%clk 0:01:12]} 20. Kh1 {[%clk 0:01:59]}  Rg7 {[%clk 0:01:11]} 21. Rg1 {[%clk 0:02:00]}  d5 {[%clk 0:00:43]} 22. exd6 {[%clk 0:01:51]}  Be6 {[%clk 0:00:35]} 23. Rxg7 {[%clk 0:01:45]}  Kxg7 {[%clk 0:00:34]} 24. Qxh7+ {[%clk 0:01:45]}  Kf8 {[%clk 0:00:19]} 25. Rg3 {[%clk 0:01:45]}  cxd6 {[%clk 0:00:07]} 26. Rg8+ {[%clk 0:01:45]}  Ke7 {[%clk 0:00:08]} 27. Rxe8+ {[%clk 0:01:46]}  Rxe8 {[%clk 0:00:08]} 28. Bxe6 {[%clk 0:01:47]}  Kxe6 {[%clk 0:00:09]} 29. Qg6+ {[%clk 0:01:47]}  Ke7 {[%clk 0:00:07]} 30. Qxf5 {[%clk 0:01:48]}  Kf8 {[%clk 0:00:05]} 31. Qd5 {[%clk 0:01:43]}  Re7 {[%clk 0:00:06]} 32. f5 {[%clk 0:01:43]}  Kg7 {[%clk 0:00:05]} 33. Qd4+ {[%clk 0:01:42]}  Re5 {[%clk 0:00:05]} 34. Qxa7 {[%clk 0:01:42]}  Rxf5 {[%clk 0:00:04]} 35. Qxb7 {[%clk 0:01:42]}  d5 {[%clk 0:00:03]} 36. Qc7 {[%clk 0:01:40]}  Kf6 {[%clk 0:00:01]} 37. a4 {[%clk 0:01:35]}  Ne5 {[%clk 0:00:01]} 38. a5 {[%clk 0:01:34]}  Nf3 {[%clk 0:00:01]} 39. a6 {[%clk 0:01:32]}  Rg5 {[%clk 0:00:01]} 40. Qd8+ {[%clk 0:01:32]}  Kf5 {[%clk 0:00:02]} 41. Qxg5+ {[%clk 0:01:32]}  Kxg5 {[%clk 0:00:02]} 42. a7 {[%clk 0:01:33]}  e3 {[%clk 0:00:03]} 43. fxe3 {[%clk 0:01:33]} 1-0


[Site "https://www.chess.com"]

[Event "Titled Tuesday Blitz January 10 Early 2023"]
[White "Shipov, Sergei"]
[Black "Vokhidov, Shamsiddin"]
[WhiteFideId "4113624"]
[BlackFideId "14204223"]
[WhiteElo "2541"]
[BlackElo "2586"]
[Result "0-1"]
[Round "09"]
[TimeControl "180+2"]
[Date "2023.01.10"]
[WhiteClock "0:00:14"]
[BlackClock "0:00:48"]

1. d4 {[%clk 0:03:00]}  Nf6 {[%clk 0:03:00]} 2. c4 {[%clk 0:03:01]}  e6 {[%clk 0:03:01]} 3. Nc3 {[%clk 0:03:01]}  Bb4 {[%clk 0:03:02]} 4. Qc2 {[%clk 0:03:01]}  d5 {[%clk 0:03:01]} 5. a3 {[%clk 0:03:01]}  Bxc3+ {[%clk 0:03:02]} 6. Qxc3 {[%clk 0:03:02]}  O-O {[%clk 0:03:02]} 7. e3 {[%clk 0:03:01]}  b6 {[%clk 0:03:02]} 8. cxd5 {[%clk 0:03:01]}  Nxd5 {[%clk 0:03:03]} 9. Qc2 {[%clk 0:03:01]}  Bb7 {[%clk 0:03:03]} 10. Bd3 {[%clk 0:03:01]}  Nf6 {[%clk 0:02:58]} 11. Ne2 {[%clk 0:03:00]}  Nbd7 {[%clk 0:02:57]} 12. O-O {[%clk 0:03:00]}  c5 {[%clk 0:02:57]} 13. Nc3 {[%clk 0:02:49]}  cxd4 {[%clk 0:02:49]} 14. exd4 {[%clk 0:02:50]}  h6 {[%clk 0:02:49]} 15. Qe2 {[%clk 0:02:47]}  Rc8 {[%clk 0:02:45]} 16. Nb5 {[%clk 0:02:29]}  Ra8 {[%clk 0:02:24]} 17. Bf4 {[%clk 0:02:28]}  Nd5 {[%clk 0:02:13]} 18. Bd6 {[%clk 0:02:18]}  Re8 {[%clk 0:02:13]} 19. Bg3 {[%clk 0:02:19]}  Ba6 {[%clk 0:01:59]} 20. Rac1 {[%clk 0:02:11]}  N7f6 {[%clk 0:01:58]} 21. Rfd1 {[%clk 0:02:05]}  Qd7 {[%clk 0:01:54]} 22. h3 {[%clk 0:01:58]}  Rec8 {[%clk 0:01:51]} 23. Be5 {[%clk 0:01:46]}  Ne8 {[%clk 0:01:14]} 24. Qf1 {[%clk 0:01:38]}  Rxc1 {[%clk 0:01:09]} 25. Rxc1 {[%clk 0:01:38]}  Rc8 {[%clk 0:01:09]} 26. Rxc8 {[%clk 0:01:36]}  Bxc8 {[%clk 0:01:10]} 27. Qd1 {[%clk 0:01:21]}  Ba6 {[%clk 0:01:02]} 28. Qa4 {[%clk 0:01:21]}  Nec7 {[%clk 0:01:02]} 29. Bxc7 {[%clk 0:00:15]}  Nxc7 {[%clk 0:01:00]} 30. Bh7+ {[%clk 0:00:15]}  Kh8 {[%clk 0:00:54]} 31. Qc2 {[%clk 0:00:15]}  Nxb5 {[%clk 0:00:50]} 32. Be4 {[%clk 0:00:14]}  Nxd4 {[%clk 0:00:48]} 0-1


[Site "https://www.chess.com"]